bitfinex/quotes_BTCUSD_20240915
["timestamp","ask_amount","ask_price","bid_price","bid_amount"]
[1726425343415,0.82242055,60035.0,60034.0,0.002646]
[1726425343653,0.01922548,60035.0,60034.0,0.002646]
[1726425344151,0.02422548,60035.0,60034.0,0.003646]
[1726425344380,0.02322548,60035.0,60034.0,0.002646]
[1726425344617,0.02922548,60035.0,60034.0,0.003646]
[1726425344865,0.02422548,60035.0,60034.0,0.002646]
[1726425345111,0.01822548,60035.0,60034.0,0.001646]
[1726425345573,0.006,60035.0,60034.0,0.002646]
[1726425345594,0.011,60035.0,60034.0,0.003646]
[1726425345846,0.01821877,60035.0,60034.0,0.002646]
[1726425346074,0.007,60035.0,60034.0,0.002646]
[1726425346599,0.02521877,60035.0,60034.0,0.002646]
[1726425346840,0.007,60035.0,60034.0,0.002646]
[1726425347087,0.02521877,60035.0,60034.0,0.002646]
[1726425347334,0.02821877,60035.0,60034.0,0.003646]
[1726425347813,0.02821877,60035.0,60034.0,0.170218]
[1726425348281,0.05435362,60035.0,60034.0,0.170218]
[1726425351418,0.02821877,60035.0,60034.0,0.170218]
[1726425354118,0.02821877,60035.0,60034.0,0.003646]
[1726425354367,0.01,60035.0,60034.0,0.003646]
[1726425354865,0.02821392,60035.0,60034.0,0.003646]
[1726425355105,0.01,60035.0,60034.0,0.003646]
[1726425355657,0.02821392,60035.0,60034.0,0.003646]
[1726425355860,0.03613485,60035.0,60034.0,0.003646]
[1726425356094,0.05434877,60035.0,60034.0,0.003646]
[1726425356814,0.05434877,60035.0,60034.0,0.503362]
[1726425357087,0.05434877,60035.0,60034.0,0.170218]
[1726425357811,0.05434877,60035.0,60034.0,0.503362]
[1726425358373,0.05434877,60035.0,60034.0,1.16965]
[1726425358606,0.02821392,60035.0,60034.0,1.16965]
[1726425358850,0.01,60035.0,60034.0,1.16965]
[1726425360350,0.007,60035.0,60034.0,1.16865]
[1726425360601,0.007,60035.0,60034.0,1.16965]
[1726425361104,0.007,60035.0,60034.0,1.16865]
[1726425361363,0.1,60044.0,60041.0,0.166552]
[1726425361858,0.01823172,60043.0,60041.0,0.166552]
[1726425362566,0.01823172,60043.0,60041.0,0.167552]
[1726425362796,0.01823172,60043.0,60041.0,0.168552]
[1726425363028,0.01823172,60043.0,60041.0,0.167552]
[1726425363295,0.01823172,60043.0,60041.0,0.166552]
[1726425363731,0.02123172,60043.0,60041.0,0.166552]
[1726425363995,0.02123172,60043.0,60039.0,0.333115]
[1726425364241,0.02123172,60043.0,60042.0,0.16655]
[1726425365235,0.0503635,60043.0,60042.0,0.16655]
[1726425365466,0.02423172,60043.0,60041.0,0.167552]
[1726425365705,0.02723172,60043.0,60042.0,0.001]
[1726425365951,0.02423172,60043.0,60042.0,0.001]
[1726425366195,0.02341824,60043.0,60042.0,0.001]
[1726425366425,0.01741824,60043.0,60041.0,0.166552]
[1726425366621,0.02341824,60043.0,60041.0,0.167552]
[1726425366869,0.006,60043.0,60042.0,0.16655]
[1726425367337,0.003,60043.0,60042.0,0.16655]
[1726425367572,0.006,60043.0,60041.0,0.001]
[1726425367811,0.006,60043.0,60041.0,0.167552]
[1726425368345,0.03213199,60043.0,60041.0,0.167552]
[1726425368615,0.003,60043.0,60041.0,0.166552]
[1726425368851,0.003,60043.0,60042.0,0.16755]
[1726425369085,0.006,60043.0,60042.0,0.16655]
[1726425369334,0.003,60043.0,60042.0,0.16655]
[1726425369612,0.006,60043.0,60042.0,0.83275]
[1726425369823,0.0211767,60043.0,60042.0,0.49977111]
[1726425370074,0.006,60043.0,60042.0,0.50077111]
[1726425370302,0.02120111,60043.0,60042.0,0.49977111]
[1726425370769,0.01820111,60043.0,60042.0,0.49977111]
[1726425371244,0.12609173,60046.0,60044.0,0.166544]
[1726425372183,0.12609173,60046.0,60044.0,0.16666511]
[1726425372664,0.15522284,60046.0,60044.0,0.16766511]
[1726425372895,0.15822284,60046.0,60044.0,0.16866511]
[1726425374135,0.15822284,60046.0,60044.0,0.00212111]
[1726425374376,0.13209173,60046.0,60044.0,0.00212111]
[1726425376572,0.13209173,60046.0,60044.0,0.16866411]
[1726425380069,0.13209173,60046.0,60044.0,0.00212111]
[1726425388910,0.29863073,60046.0,60044.0,0.00212111]
[1726425389357,0.15822312,60046.0,60044.0,0.00212111]
[1726425389587,0.13209173,60046.0,60044.0,0.00212111]
[1726425393690,0.006,60046.0,60044.0,0.16866411]
[1726425395044,0.13209173,60046.0,60044.0,0.16866411]
[1726425395331,0.13291473,60046.0,60044.0,0.16866411]
[1726425395552,0.13291473,60046.0,60044.0,0.00212111]
[1726425400382,0.01820327,60045.0,60044.0,0.00212111]
[1726425401349,0.01820327,60045.0,60044.0,0.00012111]
[1726425401585,0.04433476,60045.0,60044.0,0.00012111]
[1726425401827,0.05033476,60045.0,60044.0,0.00212111]
[1726425402065,0.05033476,60045.0,60044.0,0.16866511]
[1726425402765,0.02420327,60045.0,60044.0,0.16866511]
[1726425406545,0.02420327,60045.0,60044.0,0.16846511]
[1726425406766,0.02420327,60045.0,60044.0,0.16766511]
[1726425407244,0.02420327,60045.0,60044.0,0.16756511]
[1726425407245,0.05033471,60045.0,60044.0,0.16756511]
[1726425407489,0.02420327,60045.0,60044.0,0.16696511]
[1726425407712,0.02420327,60045.0,60044.0,0.16686511]
[1726425408215,0.02420327,60045.0,60044.0,0.16646511]
[1726425408434,0.02420327,60045.0,60044.0,0.16606511]
[1726425408889,0.02420327,60045.0,60044.0,0.16596511]
[1726425409127,0.02420327,60045.0,60044.0,0.16546511]
[1726425409353,0.02420327,60045.0,60044.0,0.16506511]
[1726425409589,0.02420327,60045.0,60043.0,0.001646]
[1726425409815,0.02420327,60045.0,60043.0,0.16799]
[1726425410035,0.02420327,60045.0,60043.0,0.16779]
[1726425410267,0.05033483,60045.0,60043.0,0.16779]
[1726425410739,0.04733483,60045.0,60043.0,0.16779]
[1726425410981,0.05133483,60045.0,60043.0,0.16879]
[1726425411208,0.04833483,60045.0,60043.0,0.16879]
[1726425411434,0.02620327,60045.0,60043.0,0.16979]
[1726425416127,0.02620327,60045.0,60043.0,0.003246]
[1726425416362,0.19274527,60045.0,60043.0,0.003246]
[1726425416595,0.02620327,60045.0,60043.0,0.003246]
[1726425416850,0.499633,60044.0,60043.0,0.003246]
[1726425417549,0.51783504,60044.0,60043.0,0.003246]
[1726425417779,0.51783504,60044.0,60043.0,0.002246]
[1726425418286,0.52583504,60044.0,60043.0,0.002246]
[1726425419250,0.85892404,60044.0,60043.0,0.002246]
[1726425420856,1.19201304,60044.0,60043.0,0.002246]
[1726425421201,1.24205392,60044.0,60043.0,0.002246]
[1726425421785,1.93661524,60044.0,60043.0,0.002246]
[1726425422018,2.37584225,60044.0,60043.0,0.002246]
[1726425422248,2.16884498,60044.0,60043.0,0.002246]
[1726425423189,2.16484498,60044.0,60043.0,0.002246]
[1726425423427,2.19098116,60044.0,60043.0,0.002246]
[1726425423655,2.18698116,60044.0,60043.0,0.001246]
[1726425423891,2.19698116,60044.0,60043.0,0.002246]
[1726425424117,2.02574095,60044.0,60043.0,0.001246]
[1726425424353,2.02574095,60044.0,60043.0,0.002246]
[1726425424354,2.03574095,60044.0,60043.0,0.002246]
[1726425424582,2.04574095,60044.0,60043.0,0.003246]
[1726425424809,2.02574095,60044.0,60043.0,0.002246]
[1726425425040,2.1383521,60044.0,60043.0,0.002246]
[1726425425287,2.10221592,60044.0,60043.0,0.001246]
[1726425425517,2.10221592,60044.0,60034.0,0.001646]
[1726425425518,1.265986,60035.0,60034.0,0.001646]
[1726425425748,1.39207773,60035.0,60034.0,0.001646]
[1726425425982,2.05700944,60035.0,60034.0,0.001646]
[1726425426251,1.95709381,60035.0,60034.0,0.001646]
[1726425426531,2.01909381,60035.0,60034.0,0.001646]
[1726425426756,2.29021213,60035.0,60034.0,0.001646]
[1726425426986,0.95914673,60020.0,60019.0,0.4665]
[1726425427217,0.166638,60010.0,60007.0,0.198844]
[1726425427445,0.12609173,60008.0,60007.0,0.198844]
[1726425427915,0.1442427,60008.0,60007.0,0.198844]
[1726425428134,0.6441747,60008.0,60007.0,0.198844]
[1726425428854,0.6451747,60008.0,60007.0,0.198844]
[1726425429985,0.6451747,60008.0,60007.0,0.001644]
[1726425430485,0.9784627,60008.0,60007.0,0.001644]
[1726425430726,0.9804627,60008.0,60007.0,0.001644]
[1726425430969,1.3137507,60008.0,60007.0,0.001644]
[1726425431211,1.4137507,60008.0,60007.0,0.001644]
[1726425431462,1.44189925,60008.0,60007.0,0.001644]
[1726425431699,1.43989925,60008.0,60007.0,0.001644]
[1726425431941,1.43889925,60008.0,60007.0,0.001644]
[1726425432184,1.62213946,60008.0,60007.0,0.001644]
[1726425432424,1.63813946,60008.0,60007.0,0.001644]
[1726425432654,1.62413946,60008.0,60007.0,0.001644]
[1726425432879,1.63813946,60008.0,60007.0,0.001644]
[1726425433120,1.97142746,60008.0,60007.0,0.001644]
[1726425433363,2.29192746,60008.0,60007.0,0.001644]
[1726425433595,2.32836626,60008.0,60007.0,0.001644]
[1726425433823,2.31436626,60008.0,60007.0,0.001644]
[1726425434097,2.32836626,60008.0,60007.0,0.001644]
[1726425435075,2.31436626,60008.0,60007.0,0.001644]
[1726425435313,2.27421771,60008.0,60007.0,0.001644]
[1726425435544,2.28821771,60008.0,60007.0,0.001644]
[1726425435772,2.30221771,60008.0,60007.0,0.001644]
[1726425435993,2.28821771,60008.0,60007.0,0.001644]
[1726425436231,2.30221771,60008.0,60007.0,0.001644]
[1726425436964,2.30021771,60008.0,60007.0,0.001644]
[1726425437426,2.30221771,60008.0,60007.0,0.001644]
[1726425437655,2.30021771,60008.0,60007.0,0.001644]
[1726425438623,2.32636952,60008.0,60007.0,0.001644]
[1726425438859,2.32836952,60008.0,60007.0,0.001644]
[1726425439792,2.30221771,60008.0,60007.0,0.001644]
[1726425442695,2.32836952,60008.0,60007.0,0.001644]
[1726425445789,2.30221771,60008.0,60007.0,0.001644]
[1726425446562,2.30221771,60008.0,60003.0,0.00338]
[1726425446563,1.81799073,60004.0,60003.0,0.00338]
[1726425447035,1.84252778,60004.0,60003.0,0.00338]
[1726425448207,1.85652778,60004.0,60003.0,0.00338]
[1726425448441,0.002,59996.0,59993.0,0.001646]
[1726425448668,0.72814073,59994.0,59993.0,0.001646]
[1726425448896,1.06150673,59994.0,59993.0,0.001646]
[1726425449116,1.77748278,59994.0,59993.0,0.001646]
[1726425449396,1.77948278,59994.0,59993.0,0.001646]
[1726425450916,1.97582267,59994.0,59993.0,0.001646]
[1726425451163,1.98982267,59994.0,59993.0,0.001646]
[1726425451411,1.97582267,59994.0,59993.0,0.001646]
[1726425451873,2.00382267,59994.0,59993.0,0.001646]
[1726425453738,2.39392267,59994.0,59993.0,0.001646]
[1726425454455,2.37992267,59994.0,59993.0,0.001646]
[1726425454692,2.36592267,59994.0,59993.0,0.001646]
[1726425454934,2.39392267,59994.0,59993.0,0.001646]
[1726425455874,2.89397267,59994.0,59993.0,0.001646]
[1726425456364,2.86781662,59994.0,59993.0,0.001646]
[1726425457998,2.87071993,59994.0,59993.0,0.001646]
[1726425460881,2.89687813,59994.0,59993.0,0.001646]
[1726425464660,2.88287813,59994.0,59993.0,0.001646]
[1726425465130,2.89687813,59994.0,59993.0,0.001646]
[1726425465397,2.86887813,59994.0,59993.0,0.001646]
[1726425465866,2.89687813,59994.0,59993.0,0.001646]
[1726425466102,2.88287813,59994.0,59993.0,0.001646]
[1726425466378,2.89687813,59994.0,59993.0,0.001646]
[1726425467960,2.87071993,59994.0,59993.0,0.001646]
[1726425474394,2.89687769,59994.0,59993.0,0.001646]
[1726425477614,2.94681703,59994.0,59993.0,0.001646]
[1726425478301,2.89687769,59994.0,59993.0,0.001646]
[1726425480001,2.9718024,59994.0,59993.0,0.001646]
[1726425480234,2.56677769,59994.0,59993.0,0.001646]
[1726425480736,2.66650686,59994.0,59993.0,0.001646]
[1726425481189,2.6403491,59994.0,59993.0,0.001646]
[1726425481434,2.54061993,59994.0,59993.0,0.001646]
[1726425481663,2.6652814,59994.0,59993.0,0.001646]
[1726425482600,2.54061993,59994.0,59993.0,0.001646]
[1726425482832,2.66552596,59994.0,59993.0,0.001646]
[1726425483313,2.54061993,59994.0,59993.0,0.001646]
[1726425484505,2.56677766,59994.0,59993.0,0.001646]
[1726425485720,2.54061993,59994.0,59993.0,0.001646]
[1726425488172,1.82282231,59994.0,59993.0,0.184846]
[1726425488625,1.97601073,59994.0,59993.0,0.184846]
[1726425488857,2.33937673,59994.0,59993.0,0.001646]
[1726425489063,2.34137673,59994.0,59993.0,0.001646]
[1726425489269,2.52861694,59994.0,59993.0,0.001646]
[1726425489499,2.54261694,59994.0,59993.0,0.001646]
[1726425489696,2.56460471,59994.0,59993.0,0.001646]
[1726425490106,2.60476185,59994.0,59993.0,0.001646]
[1726425490302,2.61876185,59994.0,59993.0,0.001646]
[1726425490513,2.60476185,59994.0,59993.0,0.001646]
[1726425490785,2.55477408,59994.0,59993.0,0.001646]
[1726425492572,2.37137673,59994.0,59993.0,0.001646]
[1726425493008,1.532246,59990.0,59989.0,0.001646]
[1726425493229,2.28305558,59990.0,59989.0,0.001646]
[1726425494064,2.29705558,59990.0,59989.0,0.001646]
[1726425495339,2.31105558,59990.0,59989.0,0.001646]
[1726425495601,2.33721321,59990.0,59989.0,0.001646]
[1726425496217,2.56845342,59990.0,59989.0,0.001646]
[1726425497125,1.87957585,59990.0,59989.0,0.001646]
[1726425497356,2.00566758,59990.0,59989.0,0.001646]
[1726425497988,1.97566758,59990.0,59989.0,0.001646]
[1726425499582,2.12596133,59990.0,59989.0,0.001646]
[1726425499836,1.97566758,59990.0,59989.0,0.001646]
[1726425500083,2.00182487,59990.0,59989.0,0.001646]
[1726425500761,1.98782487,59990.0,59989.0,0.001646]
[1726425501198,1.97566758,59990.0,59989.0,0.001646]
[1726425501653,1.94766758,59990.0,59989.0,0.001646]
[1726425501860,1.96166758,59990.0,59989.0,0.001646]
[1726425502767,1.47218785,59990.0,59989.0,0.198246]
[1726425502993,1.48618785,59990.0,59989.0,0.198246]
[1726425503239,1.50018785,59990.0,59989.0,0.198246]
[1726425503718,1.05279985,59990.0,59989.0,0.198246]
[1726425503937,0.55271785,59990.0,59989.0,0.509946]
[1726425504171,0.21561785,59990.0,59989.0,0.313346]
[1726425504647,0.17361785,59990.0,59989.0,0.480043]
[1726425504940,0.18761785,59990.0,59989.0,0.313346]
[1726425505179,0.20161785,59990.0,59989.0,0.480043]
[1726425505425,0.18761785,59990.0,59989.0,0.480043]
[1726425505646,0.19761785,59990.0,59989.0,0.480043]
[1726425505871,0.18761785,59990.0,59989.0,0.480043]
[1726425506091,0.17361785,59990.0,59989.0,0.480043]
[1726425506328,0.19161785,59990.0,59989.0,0.480043]
[1726425506788,0.19161785,59990.0,59989.0,0.313346]
[1726425507031,0.18361785,59990.0,59989.0,0.313346]
[1726425507261,0.19161785,59990.0,59989.0,0.480043]
[1726425508220,0.19161785,59990.0,59989.0,0.813437]
[1726425508448,0.16695,59990.0,59989.0,0.813437]
[1726425509173,0.1916284,59990.0,59989.0,0.813437]
[1726425509616,0.166678,59996.0,59990.0,0.166692]
[1726425509835,0.166674,59998.0,59993.0,0.166685]
[1726425510287,0.16749,60000.0,59994.0,0.166681]
[1726425510518,0.16667,59999.0,59994.0,0.166681]
[1726425510743,0.014,59996.0,59994.0,0.166681]
[1726425511709,0.014,59996.0,59992.0,0.333373]
[1726425511943,0.014,59996.0,59993.0,0.166685]
[1726425512172,0.02291713,59995.0,59993.0,0.166685]
[1726425512406,0.02291713,59995.0,59994.0,0.500049]
[1726425513138,0.008,59996.0,59995.0,0.16668]
[1726425513378,0.008,59996.0,59995.0,0.833402]
[1726425513830,0.008,59996.0,59995.0,0.825402]
[1726425514277,0.008,59996.0,59995.0,0.492041]
[1726425514955,0.000823,60000.0,59996.0,0.166675]
[1726425515321,0.000823,60000.0,59989.0,0.43943773]
[1726425515322,0.000823,60000.0,59990.0,0.333387]
[1726425515556,0.18959288,59999.0,59993.0,0.333372]
[1726425515960,0.001823,59996.0,59995.0,0.166679]
[1726425516188,0.000823,59996.0,59995.0,0.166679]
[1726425516553,0.02375431,59996.0,59995.0,0.166679]
[1726425517330,0.02475431,59996.0,59995.0,0.166679]
[1726425517454,0.001823,59996.0,59995.0,0.166679]
[1726425517960,0.001823,59996.0,59995.0,0.50004]
[1726425518587,0.001823,59996.0,59995.0,0.166679]
[1726425518825,0.002823,59996.0,59995.0,0.166679]
[1726425520175,0.002823,59996.0,59995.0,0.50004]
[1726425521870,0.002823,59996.0,59995.0,1.31585373]
[1726425524031,0.000823,60000.0,59999.0,0.833345]
[1726425524276,0.000823,60000.0,59999.0,0.95943673]
[1726425524727,0.000823,60000.0,59999.0,1.29277473]
[1726425525431,0.005823,60000.0,59999.0,1.29277473]
[1726425525847,0.000823,60000.0,59999.0,1.31577473]
[1726425526552,0.005823,60000.0,59999.0,1.31577473]
[1726425526975,0.000823,60000.0,59999.0,1.32177473]
[1726425527493,0.001823,60000.0,59999.0,1.32977473]
[1726425528276,0.001823,60000.0,59999.0,1.32377473]
[1726425529126,0.002823,60000.0,59999.0,1.33177473]
[1726425536481,0.002823,60000.0,59999.0,1.205683]
[1726425542777,0.002823,60000.0,59999.0,1.33177473]
[1726425543911,0.002823,60000.0,59999.0,0.872345]
[1726425550576,0.002823,60000.0,59999.0,1.205683]
[1726425550791,0.002823,60000.0,59999.0,0.872345]
[1726425552149,0.002823,60000.0,59999.0,0.89435159]
[1726425553248,0.002823,60000.0,59999.0,0.872345]
[1726425553493,0.002823,60000.0,59999.0,0.89434082]
[1726425553756,0.002823,60000.0,59999.0,0.89434064]
[1726425555952,0.002823,60000.0,59999.0,1.22767864]
[1726425556732,0.002823,60000.0,59999.0,1.205683]
[1726425556950,0.002823,60000.0,59999.0,1.22768529]
[1726425557628,0.002823,60000.0,59999.0,1.2276842]
[1726425560563,0.002823,60000.0,59999.0,1.205683]
[1726425560566,0.002823,60000.0,59999.0,1.22766912]
[1726425561264,0.001823,60000.0,59999.0,1.22766912]
[1726425562266,0.001823,60000.0,59999.0,0.89433112]
[1726425562728,0.001823,60000.0,59999.0,1.22766912]
[1726425563235,0.001823,60000.0,59999.0,1.27748877]
[1726425563481,0.002646,60000.0,59999.0,1.27748877]
[1726425563972,0.002646,60000.0,59999.0,1.25550265]
[1726425564213,0.002646,60000.0,59999.0,1.27750416]
[1726425564455,0.002646,60000.0,59999.0,1.22768451]
[1726425564691,0.002646,60000.0,59999.0,1.29498812]
[1726425564914,0.002646,60000.0,59999.0,1.24503663]
[1726425565849,0.002646,60000.0,59999.0,1.31976611]
[1726425566296,0.002646,60000.0,59999.0,1.54854057]
[1726425567241,0.002646,60000.0,59999.0,1.21520257]
[1726425567477,0.002646,60000.0,59999.0,1.2401124]
[1726425567939,0.002646,60000.0,59999.0,1.2171124]
[1726425568664,0.002646,60000.0,59999.0,1.11747309]
[1726425569428,0.002646,60000.0,59999.0,0.05535363]
[1726425569662,0.002646,60000.0,59999.0,0.016]
[1726425569663,0.357212,60000.0,59999.0,0.016]
[1726425569892,0.683112,60000.0,59999.0,0.016]
[1726425570128,0.166671,59999.0,59996.0,0.001646]
[1726425570362,0.58933174,60000.0,59996.0,0.168322]
[1726425570605,0.02296894,59998.0,59996.0,0.001646]
[1726425570872,0.682113,60000.0,59996.0,0.168322]
[1726425571123,0.02297044,59997.0,59996.0,0.168322]
[1726425571364,0.68429,60000.0,59996.0,0.168322]
[1726425571605,0.0229656,59997.0,59996.0,0.001646]
[1726425571855,0.68429,60000.0,59996.0,0.001646]
[1726425572100,0.68429,60000.0,59996.0,0.002646]
[1726425572101,0.0229656,59997.0,59996.0,0.002646]
[1726425572343,0.70229,60000.0,59996.0,0.003646]
[1726425572565,0.0229656,59997.0,59996.0,0.003646]
[1726425572808,0.0229656,59997.0,59996.0,0.002646]
[1726425573033,0.007,59997.0,59996.0,0.003646]
[1726425573271,0.0299656,59997.0,59996.0,0.170323]
[1726425573500,0.007,59997.0,59996.0,0.502678]
[1726425573729,0.0299656,59997.0,59996.0,0.170323]
[1726425573953,0.007,59997.0,59996.0,0.169323]
[1726425574463,0.03796376,59997.0,59996.0,0.170323]
[1726425574713,0.015,59997.0,59996.0,0.170323]
[1726425574949,0.03796376,59997.0,59996.0,0.170323]
[1726425578307,0.03796376,59997.0,59996.0,0.503678]
[1726425578534,0.03796376,59997.0,59996.0,0.837033]
[1726425588251,0.015,59997.0,59996.0,0.837033]
[1726425588737,0.007,59997.0,59996.0,0.836033]
[1726425589675,0.514623,60000.0,59999.0,0.500007]
[1726425592032,0.519623,60000.0,59999.0,0.500007]
[1726425592414,0.54257574,60000.0,59999.0,0.833345]
[1726425592633,0.54657574,60000.0,59999.0,0.833345]
[1726425596242,0.54657574,60000.0,59999.0,0.500007]
[1726425598132,0.22067574,60000.0,59999.0,0.833345]
[1726425598372,0.197723,60000.0,59999.0,0.833345]
[1726425599294,0.193723,60000.0,59999.0,0.833345]
[1726425599741,0.195723,60000.0,59999.0,0.833345]
[1726425600891,0.190723,60000.0,59999.0,0.833345]
[1726425601114,0.192723,60000.0,59999.0,0.500007]
[1726425601356,0.192723,60000.0,59999.0,0.833345]
[1726425601606,0.192723,60000.0,59999.0,0.500007]
[1726425601833,0.192723,60000.0,59999.0,0.833345]
[1726425602073,0.21567109,60000.0,59999.0,0.833345]
[1726425602786,0.21567109,60000.0,59999.0,0.500007]
[1726425603473,0.21567109,60000.0,59999.0,0.166669]
[1726425603699,0.21567109,60000.0,59999.0,0.500007]
[1726425603947,0.21567109,60000.0,59999.0,0.166669]
[1726425604190,0.21567109,60000.0,59999.0,0.500007]
[1726425607501,0.21367109,60000.0,59999.0,0.500007]
[1726425608113,0.21167109,60000.0,59999.0,0.500007]
[1726425608586,0.21867109,60000.0,59999.0,0.500007]
[1726425609501,0.21867109,60000.0,59999.0,0.166669]
[1726425609738,0.21867109,60000.0,59999.0,0.500007]
[1726425609982,0.21567109,60000.0,59999.0,0.500007]
[1726425610202,0.21867109,60000.0,59999.0,0.500007]
[1726425610677,0.21867109,60000.0,59999.0,0.166669]
[1726425611142,0.21867109,60000.0,59997.0,0.166673]
[1726425611382,0.21867109,60000.0,59996.0,0.001646]
[1726425611383,0.12609173,59999.0,59996.0,0.168322]
[1726425611610,0.02294147,59998.0,59997.0,0.166675]
[1726425613301,0.02394147,59998.0,59997.0,0.166675]
[1726425614014,0.02394147,59998.0,59996.0,0.001646]
[1726425614247,0.02394147,59998.0,59996.0,0.168322]
[1726425614530,0.02294147,59998.0,59996.0,0.168322]
[1726425614758,0.02794147,59998.0,59996.0,0.168322]
[1726425614985,0.03394147,59998.0,59997.0,0.001]
[1726425615211,0.02794147,59998.0,59996.0,0.168322]
[1726425615442,0.02794147,59998.0,59996.0,0.001646]
[1726425615692,0.166675,59997.0,59996.0,0.001646]
[1726425616169,0.166675,59997.0,59990.0,0.001646]
[1726425616170,0.694674,59991.0,59990.0,0.001646]
[1726425616402,1.05126447,59991.0,59990.0,0.001646]
[1726425616910,1.05126447,59991.0,59988.0,0.001646]
[1726425616911,0.794691,59989.0,59988.0,0.001646]
[1726425617153,1.461479,59989.0,59988.0,0.001646]
[1726425617379,1.15157063,59989.0,59988.0,0.001646]
[1726425617609,1.20159033,59989.0,59988.0,0.001646]
[1726425618332,1.16357063,59989.0,59988.0,0.001646]
[1726425618564,1.17757063,59989.0,59988.0,0.002646]
[1726425618802,1.16357063,59989.0,59988.0,0.001646]
[1726425619290,1.17557063,59989.0,59988.0,0.002646]
[1726425619536,1.17557063,59989.0,59986.0,0.001644]
[1726425619537,0.833512,59987.0,59986.0,0.001644]
[1726425619777,1.05960373,59987.0,59986.0,0.001644]
[1726425620002,1.0830819,59987.0,59986.0,0.001644]
[1726425620768,0.1,59984.0,59963.0,0.49991]
[1726425621003,0.1,59984.0,59957.0,0.07504492]
[1726425621004,0.937866,59968.0,59957.0,0.07504492]
[1726425621239,1.62908286,59968.0,59939.0,0.001646]
[1726425621693,1.79080256,59968.0,59939.0,0.001646]
[1726425621697,0.032,59962.0,59945.0,1.0004085]
[1726425621898,0.333538,59964.0,59939.0,0.001646]
[1726425621899,0.03,59947.0,59939.0,0.001646]
[1726425622109,0.03,59940.0,59939.0,0.001646]
[1726425622400,0.296833,59940.0,59939.0,0.001646]
[1726425622632,0.44700119,59940.0,59939.0,0.001646]
[1726425622875,0.363694,59935.0,59934.0,0.0031879]
[1726425623116,0.964235,59935.0,59934.0,0.0031879]
[1726425623397,1.11438968,59935.0,59934.0,0.0031879]
[1726425623603,0.95829795,59935.0,59934.0,0.0031879]
[1726425623841,0.12609173,59926.0,59907.0,0.12609173]
[1726425624109,0.1,59934.0,59916.0,1.0004085]
[1726425624345,0.1,59934.0,59926.0,0.000823]
[1726425624346,0.166866,59929.0,59926.0,0.000823]
[1726425624589,0.166865,59929.0,59926.0,0.000823]
[1726425624824,0.1,59934.0,59926.0,0.000823]
[1726425625059,0.166863,59930.0,59926.0,0.000823]
[1726425625282,0.16686,59931.0,59926.0,0.000823]
[1726425625551,0.166864,59929.0,59926.0,0.000823]
[1726425625806,0.03,59938.0,59926.0,0.000823]
[1726425625807,0.1,59931.0,59926.0,0.000823]
[1726425626038,0.166865,59929.0,59926.0,0.000823]
[1726425626749,0.180865,59929.0,59926.0,0.000823]
[1726425626980,0.014,59929.0,59926.0,0.000823]
[1726425627957,0.0240157,59928.0,59927.0,0.00333697]
[1726425628203,0.0240157,59928.0,59926.0,0.000823]
[1726425628445,0.0240157,59928.0,59926.0,0.023823]
[1726425628697,0.0240157,59928.0,59926.0,0.000823]
[1726425628929,0.16685,59934.0,59926.0,0.000823]
[1726425629170,0.02402131,59927.0,59926.0,0.000823]
[1726425629412,0.02402552,59927.0,59926.0,0.000823]
[1726425629653,0.19289331,59928.0,59926.0,0.000823]
[1726425629909,1.168086,59927.0,59926.0,0.000823]
[1726425630155,0.85840309,59927.0,59926.0,0.000823]
[1726425630402,1.19214209,59927.0,59926.0,0.000823]
[1726425630660,0.85840309,59927.0,59926.0,0.000823]
[1726425630910,0.85840309,59927.0,59926.0,0.001823]
[1726425631389,0.87140309,59927.0,59926.0,0.001823]
[1726425632086,0.87140309,59927.0,59926.0,0.000823]
[1726425632531,0.88340309,59927.0,59926.0,0.000823]
[1726425632994,0.90958681,59927.0,59926.0,0.000823]
[1726425633762,0.88458681,59927.0,59926.0,0.000823]
[1726425634009,0.91058681,59927.0,59926.0,0.000823]
[1726425634258,0.89758681,59927.0,59926.0,0.000823]
[1726425634738,1.01180549,59927.0,59926.0,0.000823]
[1726425635009,0.35980131,59913.0,59912.0,0.4665]
[1726425635259,0.02142762,59913.0,59911.0,0.0044245]
[1726425635499,0.166911,59912.0,59911.0,0.0044245]
[1726425635970,0.18832888,59912.0,59911.0,0.0044245]
[1726425636716,0.18832888,59912.0,59911.0,0.0064245]
[1726425637178,0.18832888,59912.0,59911.0,0.0044245]
[1726425637653,0.02141788,59912.0,59911.0,0.0044245]
[1726425637879,0.02141788,59912.0,59911.0,0.0064245]
[1726425638112,0.166909,59913.0,59911.0,0.0064245]
[1726425638364,0.02408633,59912.0,59911.0,0.0064245]
[1726425638608,0.19099733,59912.0,59911.0,0.0094245]
[1726425638841,0.19099235,59912.0,59911.0,0.0094245]
[1726425639079,0.02408135,59912.0,59911.0,0.0064245]
[1726425639317,0.02408135,59912.0,59911.0,0.0084245]
[1726425639541,0.19099235,59912.0,59911.0,0.0084245]
[1726425639769,0.19099235,59912.0,59911.0,0.0064245]
[1726425640023,0.19099235,59912.0,59911.0,0.0044245]
[1726425640252,0.19099235,59912.0,59911.0,0.0074245]
[1726425640477,0.19099235,59912.0,59911.0,0.0084245]
[1726425640726,0.19099235,59912.0,59911.0,0.0074245]
[1726425641201,0.19099235,59912.0,59911.0,0.0084245]
[1726425642903,0.02408135,59912.0,59911.0,0.0084245]
[1726425643608,0.166909,59913.0,59911.0,0.0084245]
[1726425643834,0.0240286,59912.0,59911.0,0.0084245]
[1726425644107,0.0240286,59912.0,59911.0,0.5321665]
[1726425644350,0.333747,59926.0,59912.0,0.16691]
[1726425644351,0.16689,59920.0,59912.0,0.16691]
[1726425644600,0.333764,59923.0,59912.0,0.16691]
[1726425644601,0.166893,59919.0,59912.0,0.023]
[1726425644845,0.02404419,59919.0,59913.0,0.166908]
[1726425645366,0.166889,59920.0,59913.0,0.166908]
[1726425645587,0.02403818,59918.0,59913.0,0.166908]
[1726425645852,0.02404167,59917.0,59913.0,0.166908]
[1726425646318,0.004,59919.0,59912.0,0.023]